fUSD/lending_fUSD_20250522
["ID","MTS","AMOUNT","RATE_DAILY","PERIOD"]
[361969110,1747914635413,-668.65185757,0.00032875,5]
[361969111,1747914635423,-223.0315306,0.00032875,5]
[361969112,1747914635433,-231.28369723,0.00032875,5]
[361969113,1747914635443,-239.84119403,0.00032875,5]
[361969114,1747914635453,-248.71531821,0.00032875,5]
[361969115,1747914635462,-257.91778498,0.00032875,5]
[361969116,1747914635472,-267.46074303,0.00032875,5]
[361969117,1747914635482,-277.35679052,0.00032875,5]
[361969118,1747914635491,-287.61899177,0.00032875,5]
[361969119,1747914635501,-298.26089446,0.00032875,5]
[361969120,1747914635510,-309.29654756,0.00032875,5]
[361969121,1747914635519,-285.93255795,0.00032875,5]
[361969122,1747914635529,-800.0,0.00032876,12]
[361969123,1747914635538,-800.0,0.00032876,12]
[361969124,1747914635548,-800.0,0.00032876,12]
[361969125,1747914635558,-800.0,0.00032876,12]
[361969126,1747914635567,-800.0,0.00032876,12]
[361969127,1747914635577,-800.0,0.00032876,12]
[361969128,1747914635586,-800.0,0.00032876,12]
[361969129,1747914635596,-800.0,0.00032876,12]
[361969130,1747914635605,-800.0,0.00032876,12]
[361969131,1747914635614,-800.0,0.00032876,12]
[361969132,1747914635624,-420.0,0.00032876,5]
[361969133,1747914635633,-151.0,0.00032876,7]
[361969134,1747914635643,-151.0,0.00032876,7]
[361969135,1747914635652,-151.0,0.00032876,7]
[361969136,1747914635662,-151.0,0.00032876,7]
[361969137,1747914635673,-420.0,0.00032876,5]
[361969138,1747914635682,-151.0,0.00032876,7]
[361969139,1747914635692,-765.5,0.00032876,5]
[361969140,1747914635701,-151.0,0.00032876,7]
[361969141,1747914635711,-420.0,0.00032876,5]
[361969142,1747914635720,-151.0,0.00032876,7]
[361969143,1747914635731,-420.0,0.00032876,5]
[361969144,1747914635741,-151.0,0.00032876,7]
[361969145,1747914635751,-151.0,0.00032876,7]
[361969146,1747914635760,-265.98721,0.00032876,7]
[361969147,1747914635770,-420.0,0.00032876,5]
[361969148,1747914635779,-420.0,0.00032876,5]
[361969149,1747914635789,-420.0,0.00032876,5]
[361969150,1747914635799,-420.0,0.00032876,5]
[361969151,1747914635809,-420.0,0.00032876,5]
[361969152,1747914635818,-420.0,0.00032876,5]
[361969153,1747914635827,-420.0,0.00032876,5]
[361969154,1747914635837,-420.0,0.00032876,5]
[361969155,1747914635846,-420.0,0.00032876,5]
[361969156,1747914635856,-420.0,0.00032876,5]
[361969157,1747914635866,-1081.07,0.00032876,5]
[361969158,1747914635875,-680.69,0.00032876,5]
[361969159,1747914635885,-473.56,0.00032876,5]
[361969160,1747914635895,-420.0,0.00032876,5]
[361969161,1747914635904,-433.21,0.00032876,5]
[361969162,1747914635916,-420.0,0.00032876,5]
[361969163,1747914635925,-513.05,0.00032876,5]
[361969164,1747914635935,-420.0,0.00032876,5]
[361969165,1747914635945,-685.42,0.00032876,5]
[361969166,1747914635954,-420.0,0.00032876,5]
[361969167,1747914635964,-420.0,0.00032876,5]
[361969168,1747914635973,-420.0,0.00032876,5]
[361969169,1747914635983,-1057.83,0.00032876,5]
[361969170,1747914635992,-420.0,0.00032876,5]
[361969171,1747914636002,-420.0,0.00032876,5]
[361969172,1747914636011,-420.0,0.00032876,5]
[361969173,1747914636022,-420.0,0.00032876,5]
[361969174,1747914636038,-420.0,0.00032876,5]
[361969175,1747914636049,-1342.04,0.00032876,5]
[361969176,1747914636058,-435.4,0.00032876,5]
[361969177,1747914636068,-420.0,0.00032876,5]
[361969178,1747914636077,-420.0,0.00032876,5]
[361969179,1747914636087,-420.0,0.00032876,5]
[361969180,1747914636096,-1184.54,0.00032876,5]
[361969181,1747914636105,-420.0,0.00032876,5]
[361969182,1747914636115,-420.0,0.00032876,5]
[361969183,1747914636124,-670.2,0.00032876,5]
[361969184,1747914636134,-420.0,0.00032876,5]
[361969185,1747914636143,-802.95,0.00032876,5]
[361969186,1747914636153,-420.0,0.00032876,5]
[361969187,1747914636162,-647.77,0.00032876,5]
[361969188,1747914636171,-523.97,0.00032876,5]
[361969189,1747914636180,-420.0,0.00032876,5]
[361969190,1747914636190,-420.0,0.00032876,5]
[361969191,1747914636199,-420.0,0.00032876,5]
[361969192,1747914636208,-420.0,0.00032876,5]
[361969193,1747914636218,-420.0,0.00032876,5]
[361969194,1747914636229,-420.0,0.00032876,5]
[361969195,1747914636238,-300.28252195,0.00032876,5]
[361969196,1747914636248,-450.88,0.00032876,5]
[361969197,1747914636257,-420.0,0.00032876,5]
[361969198,1747914636267,-1000.0,0.00032876,5]
[361969199,1747914636276,-420.0,0.00032876,5]
[361969200,1747914636286,-420.0,0.00032876,5]
[361969201,1747914636295,-603.0,0.00032876,5]
[361969202,1747914636304,-431.35,0.00032876,5]
[361969203,1747914636316,-460.26,0.00032876,5]
[361969204,1747914636325,-762.06,0.00032876,5]
[361969205,1747914636335,-420.0,0.00032876,5]
[361969206,1747914636347,-347.6,0.00032876,5]
[361969207,1747914636357,-708.01,0.00032876,5]
[361969208,1747914636366,-933.57,0.00032876,5]
[361969209,1747914636377,-1298.98,0.00032876,5]
[361969210,1747914636388,-420.0,0.00032876,5]
[361969211,1747914636397,-420.0,0.00032876,5]
[361969212,1747914636407,-743.3,0.00032876,5]
[361969213,1747914636416,-420.0,0.00032876,5]
[361969214,1747914636425,-920.81,0.00032876,5]
[361969215,1747914636435,-420.0,0.00032876,5]
[361969216,1747914636444,-1257.17,0.00032876,5]
[361969217,1747914636454,-420.0,0.00032876,5]
[361969218,1747914636463,-443.34,0.00032876,5]
[361969219,1747914636473,-1042.45,0.00032876,5]
[361969220,1747914636484,-151.0,0.00032876,7]
[361969221,1747914636494,-151.0,0.00032876,7]
[361969222,1747914636503,-420.0,0.00032876,5]
[361969223,1747914636513,-151.0,0.00032876,7]
[361969224,1747914636522,-151.0,0.00032876,7]
[361969225,1747914636535,-151.0,0.00032876,7]
[361969226,1747914636544,-151.0,0.00032876,7]
[361969227,1747914636554,-576.67,0.00032876,5]
[361969228,1747914636563,-420.0,0.00032876,5]
[361969229,1747914636573,-420.0,0.00032876,5]
[361969230,1747914636582,-420.0,0.00032876,5]
[361969231,1747914636591,-420.0,0.00032876,5]
[361969232,1747914636600,-722.53,0.00032876,5]
[361969233,1747914636610,-420.0,0.00032876,5]
[361969234,1747914636620,-565.37,0.00032876,5]
[361969235,1747914636630,-420.0,0.00032876,5]
[361969236,1747914636639,-420.0,0.00032876,5]
[361969237,1747914636648,-420.0,0.00032876,5]
[361969238,1747914636659,-420.0,0.00032876,5]
[361969239,1747914636668,-420.0,0.00032876,5]
[361969240,1747914636678,-665.53,0.00032876,5]
[361969241,1747914636687,-563.14,0.00032876,5]
[361969242,1747914636698,-528.78,0.00032876,5]
[361969243,1747914636707,-420.0,0.00032876,5]
[361969244,1747914636717,-420.0,0.00032876,5]
[361969245,1747914636727,-463.58,0.00032876,5]
[361969246,1747914636738,-420.0,0.00032876,5]
[361969247,1747914636748,-710.56,0.00032876,5]
[361969248,1747914636757,-562.43,0.00032876,5]
[361969249,1747914636767,-420.0,0.00032876,5]
[361969250,1747914636777,-420.0,0.00032876,5]
[361969251,1747914636787,-857.76,0.00032876,5]
[361969252,1747914636796,-420.0,0.00032876,5]
[361969253,1747914636806,-673.21,0.00032876,5]
[361969254,1747914636815,-500.0,0.00032876,5]
[361969255,1747914636824,-420.0,0.00032876,5]
[361969256,1747914636834,-420.0,0.00032876,5]
[361969257,1747914636844,-420.0,0.00032876,5]
[361969258,1747914636853,-420.0,0.00032876,5]
[361969259,1747914636862,-478.47,0.00032876,5]
[361969260,1747914636872,-420.0,0.00032876,5]
[361969261,1747914636881,-1000.0,0.00032876,30]
[361969262,1747914636890,-420.0,0.00032876,5]
[361969263,1747914636899,-420.0,0.00032876,5]
[361969264,1747914636909,-420.0,0.00032876,5]
[361969265,1747914636919,-420.0,0.00032876,5]
[361969266,1747914636928,-420.0,0.00032876,5]
[361969267,1747914636938,-420.0,0.00032876,5]
[361969268,1747914636947,-420.0,0.00032876,5]
[361969269,1747914636957,-420.0,0.00032876,5]
[361969270,1747914636966,-420.0,0.00032876,5]
[361969271,1747914636976,-420.0,0.00032876,5]
[361969272,1747914636985,-420.0,0.00032876,5]
[361969273,1747914636995,-501.03,0.00032876,5]
[361969274,1747914637005,-420.0,0.00032876,5]
[361969275,1747914637014,-420.0,0.00032876,5]
[361969276,1747914637024,-420.0,0.00032876,5]
[361969277,1747914637034,-1184.73,0.00032876,5]
[361969278,1747914637043,-420.0,0.00032876,5]
[361969279,1747914637053,-328.38512541,0.00032876,5]
[361969280,1747914637063,-742.06,0.00032876,5]
[361969281,1747914637072,-867.91,0.00032876,5]
[361969282,1747914637082,-420.0,0.00032876,5]
[361969283,1747914637092,-816.77,0.00032876,5]
[361969284,1747914637101,-420.0,0.00032876,5]
[361969285,1747914637110,-420.0,0.00032876,5]
[361969286,1747914637120,-420.0,0.00032876,5]
[361969287,1747914637130,-532.97,0.00032876,5]
[361969288,1747914637139,-420.0,0.00032876,5]
[361969289,1747914637149,-578.39,0.00032876,5]
[361969290,1747914637158,-420.0,0.00032876,5]
[361969291,1747914637168,-460.86,0.00032876,5]
[361969292,1747914637177,-476.96,0.00032876,5]
[361969293,1747914637186,-544.52783939,0.00032876,5]
[361969294,1747914637196,-531.05,0.00032876,5]
[361969295,1747914637205,-420.0,0.00032876,5]
[361969296,1747914637214,-420.0,0.00032876,5]
[361969297,1747914637224,-420.0,0.00032876,5]
[361969298,1747914637234,-983.45,0.00032876,5]
[361969299,1747914637244,-1125.44,0.00032876,5]
[361969300,1747914637254,-420.0,0.00032876,5]
[361969301,1747914637264,-420.0,0.00032876,5]
[361969302,1747914637273,-420.0,0.00032876,5]
[361969303,1747914637282,-432.57,0.00032876,5]
[361969304,1747914637291,-1008.67,0.00032876,5]
[361969305,1747914637301,-1675.71,0.00032876,5]
[361969306,1747914637311,-478.12,0.00032876,5]
[361969307,1747914637320,-1156.07,0.00032876,5]
[361969308,1747914637330,-605.94,0.00032876,5]
[361969309,1747914637342,-918.5,0.00032876,5]
[361969310,1747914637351,-420.0,0.00032876,5]
[361969311,1747914637362,-1354.03,0.00032876,5]
[361969312,1747914637371,-420.0,0.00032876,5]
[361969313,1747914637381,-420.0,0.00032876,5]
[361969314,1747914637390,-593.14,0.00032876,5]
[361969315,1747914637401,-778.03,0.00032876,5]
[361969316,1747914637411,-199.96973598,0.00032876,5]
[361969317,1747914637421,-420.0,0.00032876,5]
[361969318,1747914637431,-837.2,0.00032876,5]
[361969319,1747914637443,-1140.57,0.00032876,5]
[361969320,1747914637453,-2097.51,0.00032876,5]
[361969321,1747914637462,-431.17,0.00032876,5]
[361969323,1747914637723,-420.0,0.00032876,5]
[361969324,1747914637736,-420.0,0.00032876,5]
[361969325,1747914637747,-818.58,0.00032876,5]
[361969326,1747914637758,-722.59,0.00032876,5]
[361969327,1747914637768,-420.0,0.00032876,5]
[361969328,1747914637778,-420.0,0.00032876,5]
[361969329,1747914637788,-939.98,0.00032876,5]
[361969330,1747914637799,-1165.39,0.00032876,5]
[361969331,1747914637809,-420.0,0.00032876,5]
[361969332,1747914637819,-420.0,0.00032876,5]
[361969333,1747914637829,-443.45,0.00032876,5]
[361969334,1747914637839,-2356.11,0.00032876,5]
[361969335,1747914637849,-768.55,0.00032876,5]
[361969336,1747914637859,-844.95,0.00032876,5]
[361969337,1747914637868,-420.0,0.00032876,5]
[361969338,1747914637878,-616.8,0.00032876,5]
[361969339,1747914637888,-420.0,0.00032876,5]
[361969340,1747914637897,-420.0,0.00032876,5]
[361969341,1747914637907,-420.0,0.00032876,5]
[361969342,1747914637916,-335.17873102,0.00032876,5]
[361969343,1747914637926,-420.0,0.00032876,5]
[361969344,1747914637936,-420.0,0.00032876,5]
[361969345,1747914637946,-1251.31,0.00032876,5]
[361969346,1747914637955,-420.0,0.00032876,5]
[361969347,1747914637963,-461.55,0.00032876,5]
[361969348,1747914637971,-420.0,0.00032876,5]
[361969349,1747914637981,-420.0,0.00032876,5]
[361969350,1747914637990,-420.0,0.00032876,5]
[361969352,1747914637999,-696.05,0.00032876,5]
[361969354,1747914638008,-551.74,0.00032876,5]
[361969356,1747914638018,-1009.85,0.00032876,5]
[361969358,1747914638027,-1106.16,0.00032876,5]
[361969360,1747914638035,-420.0,0.00032876,5]
[361969362,1747914638044,-1057.19,0.00032876,5]
[361969364,1747914638053,-151.0,0.00032876,7]
[361969365,1747914638062,-778.15,0.00032876,5]
[361969367,1747914638071,-155.807472,0.00032876,7]
[361969369,1747914638080,-646.97,0.00032876,5]
[361969372,1747914638090,-420.0,0.00032876,5]
[361969374,1747914638099,-420.0,0.00032876,5]
[361969376,1747914638107,-420.0,0.00032876,5]
[361969377,1747914638115,-420.0,0.00032876,5]
[361969380,1747914638123,-420.0,0.00032876,5]
[361969381,1747914638131,-568.69,0.00032876,5]
[361969385,1747914638140,-420.0,0.00032876,5]
[361969387,1747914638149,-1144.52,0.00032876,5]
[361969389,1747914638157,-1205.09,0.00032876,5]
[361969390,1747914638164,-420.0,0.00032876,5]
[361969392,1747914638170,-677.88,0.00032876,5]
[361969394,1747914638178,-456.15,0.00032876,5]
[361969395,1747914638185,-420.0,0.00032876,5]
[361969396,1747914638192,-536.34,0.00032876,5]
[361969397,1747914638199,-448.68,0.00032876,5]
[361969398,1747914638206,-420.0,0.00032876,5]
[361969399,1747914638213,-508.85,0.00032876,5]
[361969400,1747914638219,-420.0,0.00032876,5]
[361969401,1747914638227,-901.61,0.00032876,5]
[361969402,1747914638234,-887.46,0.00032876,5]
[361969403,1747914638241,-420.0,0.00032876,5]
[361969404,1747914638249,-742.83,0.00032876,5]
[361969405,1747914638256,-420.0,0.00032876,5]
[361969406,1747914638263,-1083.66,0.00032876,5]
[361969407,1747914638271,-454.61,0.00032876,5]
[361969408,1747914638279,-420.0,0.00032876,5]
[361969409,1747914638287,-420.0,0.00032876,5]
[361969410,1747914638296,-831.63,0.00032876,5]
[361969411,1747914638304,-962.91,0.00032876,5]
[361969412,1747914638313,-420.0,0.00032876,5]
[361969414,1747914638322,-420.0,0.00032876,5]
[361969415,1747914638332,-609.97,0.00032876,5]
[361969417,1747914638344,-420.0,0.00032876,5]
[361969419,1747914638353,-420.0,0.00032876,5]
[361969421,1747914638363,-948.4,0.00032876,5]
[361969423,1747914638372,-1292.2,0.00032876,5]
[361969425,1747914638382,-420.0,0.00032876,5]
[361969427,1747914638391,-1008.83,0.00032876,5]
[361969429,1747914638400,-450.63,0.00032876,5]
[361969431,1747914638409,-420.0,0.00032876,5]
[361969433,1747914638419,-333.67325263,0.00032876,5]
[361969435,1747914638429,-474.96,0.00032876,5]
[361969437,1747914638439,-545.87,0.00032876,5]
[361969439,1747914638448,-420.0,0.00032876,5]
[361969441,1747914638458,-420.0,0.00032876,5]
[361969443,1747914638467,-1051.16,0.00032876,5]
[361969445,1747914638478,-617.82,0.00032876,5]
[361969447,1747914638487,-420.0,0.00032876,5]
[361969449,1747914638496,-291.84369092,0.00032876,5]
[361969451,1747914638506,-471.46,0.00032876,5]
[361969453,1747914638516,-420.0,0.00032876,5]
[361969455,1747914638526,-507.83,0.00032876,5]
[361969457,1747914638538,-420.0,0.00032876,5]
[361969459,1747914638547,-1075.79,0.00032876,5]
[361969461,1747914638556,-481.56983222,0.00032876,5]
[361969463,1747914638565,-1116.69,0.00032876,5]
[361969464,1747914638573,-592.52,0.00032876,5]
[361969466,1747914638582,-1121.55,0.00032876,5]
[361969468,1747914638592,-493.59,0.00032876,5]
[361969470,1747914638600,-420.0,0.00032876,5]
[361969472,1747914638609,-420.0,0.00032876,5]
[361969474,1747914638618,-420.0,0.00032876,5]
[361969476,1747914638626,-844.92,0.00032876,5]
[361969478,1747914638636,-1007.48,0.00032876,5]
[361969480,1747914638644,-1163.07,0.00032876,5]
[361969482,1747914638653,-1058.49,0.00032876,5]
[361969484,1747914638661,-420.0,0.00032876,5]
[361969486,1747914638670,-420.0,0.00032876,5]
[361969488,1747914638679,-420.0,0.00032876,5]
[361969490,1747914638689,-727.11,0.00032876,5]
[361969492,1747914638698,-420.0,0.00032876,5]
[361969495,1747914638708,-487.26832773,0.00032876,5]
[361969497,1747914638717,-761.78,0.00032876,5]
[361969499,1747914638726,-851.42,0.00032876,5]
[361969500,1747914638736,-803.95,0.00032876,5]
[361969502,1747914638745,-528.58677334,0.00032876,5]
[361969504,1747914638755,-420.0,0.00032876,5]
[361969506,1747914638763,-802.19,0.00032876,5]
[361969508,1747914638771,-602.33,0.00032876,5]
[361969510,1747914638781,-420.0,0.00032876,5]
[361969512,1747914638789,-420.0,0.00032876,5]
[361969514,1747914638799,-895.13,0.00032876,5]
[361969516,1747914638808,-441.04,0.00032876,5]
[361969518,1747914638817,-420.0,0.00032876,5]
[361969520,1747914638826,-420.0,0.00032876,5]
[361969522,1747914638834,-1188.21,0.00032876,5]
[361969524,1747914638844,-819.52,0.00032876,5]
[361969526,1747914638853,-840.03,0.00032876,5]
[361969528,1747914638863,-420.0,0.00032876,5]
[361969530,1747914638872,-420.0,0.00032876,5]
[361969532,1747914638881,-829.08,0.00032876,5]
[361969534,1747914638890,-828.91,0.00032876,5]
[361969536,1747914638899,-266.10841329,0.00032876,5]
[361969538,1747914638908,-420.0,0.00032876,5]
[361969540,1747914638918,-420.0,0.00032876,5]
[361969542,1747914638927,-420.0,0.00032876,5]
[361969544,1747914638937,-420.0,0.00032876,5]
[361969546,1747914638946,-1220.1,0.00032876,5]
[361969548,1747914638956,-871.1,0.00032876,5]
[361969550,1747914638966,-522.32,0.00032876,5]
[361969552,1747914638975,-420.0,0.00032876,5]
[361969554,1747914638984,-254.460108,0.00032876,5]
[361969556,1747914638994,-568.40249819,0.00032876,5]
[361969558,1747914639003,-1378.39,0.00032876,5]
[361969560,1747914639012,-625.01,0.00032876,5]
[361969561,1747914639022,-435.94960291,0.00032876,5]
[361969563,1747914639032,-645.8,0.00032876,5]
[361969565,1747914639041,-462.94,0.00032876,5]
[361969567,1747914639051,-944.34,0.00032876,5]
[361969569,1747914639060,-420.0,0.00032876,5]
[361969571,1747914639070,-621.22,0.00032876,5]
[361969573,1747914639080,-988.59,0.00032876,5]
[361969575,1747914639089,-838.29,0.00032876,5]
[361969577,1747914639099,-420.0,0.00032876,5]
[361969579,1747914639108,-420.0,0.00032876,5]
[361969581,1747914639118,-630.54,0.00032876,5]
[361969583,1747914639127,-768.43,0.00032876,5]
[361969585,1747914639137,-364.1853703,0.00032876,5]
[361969587,1747914639146,-420.0,0.00032876,5]
[361969589,1747914639156,-420.0,0.00032876,5]
[361969591,1747914639166,-769.1,0.00032876,5]
[361969593,1747914639175,-446.94,0.00032876,5]
[361969595,1747914639184,-420.0,0.00032876,5]
[361969597,1747914639194,-532.04,0.00032876,5]
[361969599,1747914639204,-420.0,0.00032876,5]
[361969601,1747914639214,-1140.48,0.00032876,5]
[361969603,1747914639223,-1542.15,0.00032876,5]
[361969605,1747914639233,-420.0,0.00032876,5]
[361969607,1747914639243,-448.029524,0.00032876,5]
[361969609,1747914639253,-717.97,0.00032876,5]
[361969611,1747914639263,-420.0,0.00032876,5]
[361969613,1747914639272,-416.55340638,0.00032876,5]
[361969615,1747914639281,-382.42258504,0.00032876,5]
[361969617,1747914639290,-2111.61,0.00032876,5]
[361969619,1747914639300,-1620.74,0.00032876,5]
[361969621,1747914639309,-420.0,0.00032876,5]
[361969623,1747914639318,-420.0,0.00032876,5]
[361969625,1747914639328,-420.0,0.00032876,5]
[361969627,1747914639341,-686.59,0.00032876,5]
[361969629,1747914639352,-771.36,0.00032876,5]
[361969631,1747914639362,-150.850086,0.00032876,5]
[361969633,1747914639371,-1092.97,0.00032876,5]
[361969635,1747914639381,-1025.7,0.00032876,5]
[361969637,1747914639391,-420.0,0.00032876,5]
[361969639,1747914639401,-925.19,0.00032876,5]
[361969641,1747914639410,-420.0,0.00032876,5]
[361969643,1747914639421,-420.0,0.00032876,5]
[361969645,1747914639431,-853.04,0.00032876,5]
[361969647,1747914639441,-723.41,0.00032876,5]
[361969649,1747914639450,-1083.02,0.00032876,5]
[361969651,1747914639460,-420.0,0.00032876,5]
[361969653,1747914639469,-151.0,0.00032876,7]
[361969655,1747914639478,-151.0,0.00032876,7]
[361969657,1747914639488,-151.0,0.00032876,7]
[361969659,1747914639498,-420.0,0.00032876,5]
[361969661,1747914639508,-151.0,0.00032876,7]
[361969663,1747914639518,-420.0,0.00032876,5]
[361969665,1747914639528,-151.0,0.00032876,7]
[361969667,1747914639537,-151.0,0.00032876,7]
[361969669,1747914639547,-420.0,0.00032876,5]
[361969671,1747914639556,-470.05,0.00032876,5]
[361969673,1747914639566,-976.28,0.00032876,5]
[361969675,1747914639576,-555.49,0.00032876,5]
[361969677,1747914639585,-2073.02,0.00032876,5]
[361969679,1747914639595,-420.0,0.00032876,5]
[361969681,1747914639604,-458.88,0.00032876,5]
[361969683,1747914639614,-724.96,0.00032876,5]
[361969685,1747914639623,-151.0,0.00032876,7]
[361969687,1747914639633,-151.0,0.00032876,7]
[361969689,1747914639643,-420.0,0.00032876,5]
[361969691,1747914639652,-151.0,0.00032876,7]
[361969693,1747914639662,-151.0,0.00032876,7]
[361969695,1747914639672,-420.0,0.00032876,5]
[361969697,1747914639682,-420.0,0.00032876,5]
[361969699,1747914639692,-151.0,0.00032876,7]
[361969701,1747914639702,-151.0,0.00032876,7]
[361969703,1747914639711,-420.0,0.00032876,5]
[361969705,1747914639721,-422.19709562,0.00032876,5]
[361969707,1747914639732,-547.07368678,0.00032876,5]
[361969709,1747914639741,-420.0,0.00032876,5]
[361969711,1747914639751,-151.0,0.00032876,7]
[361969713,1747914639761,-151.0,0.00032876,7]
[361969715,1747914639772,-1100.22,0.00032876,5]
[361969717,1747914639781,-420.0,0.00032876,5]
[361969719,1747914639791,-420.0,0.00032876,5]
[361969721,1747914639800,-151.0,0.00032876,7]
[361969723,1747914639811,-2457.96,0.00032876,5]
[361969725,1747914639820,-223.752681,0.00032876,7]
[361969727,1747914639830,-582.89,0.00032876,5]
[361969729,1747914639840,-420.0,0.00032876,5]
[361969731,1747914639850,-420.0,0.00032876,5]
[361969733,1747914639859,-957.91,0.00032876,5]
[361969735,1747914639869,-720.41,0.00032876,5]
[361969737,1747914639879,-420.0,0.00032876,5]
[361969739,1747914639889,-607.03,0.00032876,5]
[361969741,1747914639898,-521.6,0.00032876,5]
[361969743,1747914639908,-2126.45,0.00032876,5]
[361969745,1747914639918,-420.0,0.00032876,5]
[361969747,1747914639927,-649.14,0.00032876,5]
[361969749,1747914639936,-168.41766264,0.00032876,5]
[361969751,1747914639947,-420.0,0.00032876,5]
[361969753,1747914639956,-420.0,0.00032876,5]
[361969765,1747914639966,-420.0,0.00032876,5]
[361969767,1747914640074,-621.02,0.00032876,5]
[361969768,1747914640083,-420.0,0.00032876,5]
[361969770,1747914640093,-420.0,0.00032876,5]
[361969772,1747914640102,-819.4,0.00032876,5]
[361969774,1747914640112,-420.0,0.00032876,5]
[361969776,1747914640121,-420.0,0.00032876,5]
[361969778,1747914640130,-420.0,0.00032876,5]
[361969780,1747914640139,-1136.42,0.00032876,5]
[361969782,1747914640149,-420.0,0.00032876,5]
[361969785,1747914640158,-803.26,0.00032876,5]
[361969787,1747914640173,-420.0,0.00032876,5]
[361969789,1747914640183,-527.84,0.00032876,5]
[361969791,1747914640192,-420.0,0.00032876,5]
[361969793,1747914640201,-420.0,0.00032876,5]
[361969795,1747914640211,-420.0,0.00032876,5]
[361969797,1747914640221,-1110.91,0.00032876,5]
[361969799,1747914640231,-614.31,0.00032876,5]
[361969801,1747914640240,-860.98,0.00032876,5]
[361969803,1747914640250,-420.0,0.00032876,5]
[361969805,1747914640260,-420.0,0.00032876,5]
[361969807,1747914640269,-977.83,0.00032876,5]
[361969809,1747914640279,-191.38967116,0.00032876,5]
[361969811,1747914640289,-420.0,0.00032876,5]
[361969813,1747914640299,-844.67,0.00032876,5]
[361969815,1747914640308,-728.55,0.00032876,5]
[361969817,1747914640317,-471.98,0.00032876,5]
[361969819,1747914640326,-530.46,0.00032876,5]
[361969821,1747914640337,-420.0,0.00032876,5]
[361969823,1747914640350,-420.0,0.00032876,5]
[361969825,1747914640359,-790.96,0.00032876,5]
[361969827,1747914640368,-420.0,0.00032876,5]
[361969829,1747914640378,-420.0,0.00032876,5]
[361969831,1747914640388,-742.66,0.00032876,5]
[361969833,1747914640397,-713.37,0.00032876,5]
[361969835,1747914640407,-620.27,0.00032876,5]
[361969837,1747914640416,-420.0,0.00032876,5]
[361969839,1747914640427,-694.26,0.00032876,5]
[361969841,1747914640437,-1403.21,0.00032876,5]
[361969843,1747914640447,-366.45371121,0.00032876,5]
[361969845,1747914640456,-539.29,0.00032876,5]
[361969846,1747914640466,-150.0,0.00032876,5]
[361969847,1747914640475,-842.35,0.00032876,5]
[361969848,1747914640485,-150.0,0.00032876,5]
[361969849,1747914640494,-1579.09,0.00032876,5]
[361969850,1747914640504,-420.0,0.00032876,5]
[361969851,1747914640514,-420.0,0.00032876,5]
[361969852,1747914640523,-150.0,0.00032876,5]